bitfinex-derivatives/quotes_SOLF0:USTF0_20251209
["timestamp","ask_amount","ask_price","bid_price","bid_amount"]
[1765283139401,3.18,133.4,133.39,0.04881337]
[1765283145716,3.18,133.4,133.36,63.72]
[1765283146617,0.05368409,133.39,133.37,0.05706164]
[1765283146818,3.23368409,133.39,133.37,0.05706164]
[1765283147619,3.23368409,133.39,133.37,6.80516164]
[1765283153014,3.23368409,133.39,133.37,0.05706164]
[1765283156017,9.98108409,133.39,133.37,0.05706164]
[1765283156220,3.23368409,133.39,133.31,66.86320668]
[1765283156423,3.23368409,133.39,133.31,63.72]
[1765283156729,3.18,133.36,133.32,6.7507]
[1765283157116,3.18,133.34,133.31,63.72]
[1765283157318,3.23415586,133.34,133.31,0.04928122]
[1765283162126,3.15415586,133.34,133.31,0.04928122]
[1765283162527,3.15415586,133.34,133.31,6.80038122]
[1765283162822,3.15415586,133.34,133.31,8.81505687]
[1765283165231,3.15415586,133.34,133.31,6.80038122]
[1765283168530,0.05415586,133.34,133.31,2.06395687]
[1765283168729,3.33415586,133.34,133.31,0.04928122]
[1765283169125,0.05415586,133.34,133.31,2.06395687]
[1765283169535,0.05415586,133.34,133.33,2.01467565]
[1765283170136,0.05415586,133.34,133.32,63.74]
[1765283170325,0.05415586,133.34,133.33,2.01467565]
[1765283170526,0.05415586,133.34,133.33,8.76497565]
[1765283170733,0.05415586,133.34,133.33,6.7503]
[1765283172236,0.05415586,133.34,133.33,8.76497565]
[1765283176247,0.05415586,133.34,133.33,6.7503]
[1765283178750,3.33415586,133.34,133.32,63.74]
[1765283179245,3.33415586,133.34,133.32,70.4905]
[1765283179439,0.05415586,133.34,133.32,70.4905]
[1765283179751,0.05415586,133.34,133.32,6.7505]
[1765283180144,0.05415586,133.34,133.33,6.7503]
[1765283180851,3.33415586,133.34,133.31,8.81475687]
[1765283181043,3.33415586,133.34,133.31,6.80008122]
[1765283181552,0.05415586,133.34,133.31,0.04928122]
[1765283181851,0.05415586,133.34,133.31,2.06395687]
[1765283182551,0.05415586,133.34,133.33,6.7503]
[1765283183852,0.05415586,133.34,133.33,8.76497565]
[1765283191462,0.00415586,133.34,133.33,8.76497565]
[1765283192161,3.31,133.4,133.36,6.7483]
[1765283192350,3.31,133.4,133.36,8.76297565]
[1765283193057,0.05409413,133.39,133.37,0.05528213]
[1765283193262,3.36409413,133.39,133.37,0.05528213]
[1765283193664,3.36409413,133.39,133.37,6.80348213]
[1765283195260,3.36409413,133.39,133.37,0.05528213]
[1765283205275,10.11129413,133.39,133.37,0.05528213]
[1765283205464,3.31,133.38,133.37,0.05528213]
[1765283207276,3.31,133.37,133.31,2.01467565]
[1765283207470,3.31,133.36,133.29,65.75467565]
[1765283208082,3.31,133.33,133.28,6.7525]
[1765283208279,3.31,133.31,133.29,0.05743521]
[1765283209573,3.31,133.31,133.29,6.80963521]
[1765283210676,3.31,133.31,133.29,0.05743521]
[1765283214177,0.05253488,133.32,133.3,6.7514]
[1765283214379,0.05253488,133.32,133.3,2.01467565]
[1765283215082,0.05253488,133.32,133.31,6.7513]
[1765283218873,3.14,133.38,133.31,6.7513]
[1765283218874,3.14,133.38,133.34,6.7495]
[1765283219076,3.14,133.38,133.34,72.52417565]
[1765283219776,3.14,133.41,133.36,2.01467565]
[1765283219974,3.14,133.39,133.37,0.04995716]
[1765283220685,0.05215708,133.4,133.37,0.04995716]
[1765283220881,0.05215708,133.4,133.39,2.01467565]
[1765283221384,0.05215708,133.4,133.38,70.4874]
[1765283221682,3.19215708,133.4,133.38,72.50207565]
[1765283221882,3.19215708,133.4,133.38,70.4874]
[1765283222076,3.19215708,133.4,133.37,0.04995716]
[1765283223285,9.93905708,133.4,133.37,0.04995716]
[1765283223491,3.23,133.38,133.27,108.1944256]
[1765283223694,3.23,133.36,133.26,260.39529758]
[1765283223986,3.23,133.36,133.27,63.74]
[1765283224192,3.23,133.35,133.29,6.7521]
[1765283224487,3.23,133.32,133.31,0.0575439]
[1765283228988,3.23,133.32,133.27,63.74]
[1765283229188,3.23,133.31,133.27,63.74]
[1765283229990,0.04826073,133.3,133.28,0.05575828]
[1765283230195,3.23,133.29,133.28,0.05575828]
[1765283231801,0.04826073,133.3,133.28,0.05575828]
[1765283231995,3.27826073,133.3,133.28,0.05575828]
[1765283232597,3.27826073,133.3,133.28,6.80835828]
[1765283232902,3.27826073,133.3,133.28,0.05575828]
[1765283238207,3.27826073,133.3,133.27,63.74]
[1765283238405,3.27826073,133.3,133.23,63.76]
[1765283238711,3.23,133.3,133.23,63.76]
[1765283239196,3.28418251,133.28,133.25,6.80728468]
[1765283239396,3.28418251,133.28,133.25,6.80350582]
[1765283240103,0.05418251,133.28,133.27,6.7533]
[1765283240407,3.23,133.34,133.27,63.76]
[1765283240609,3.23,133.34,133.3,6.7517]
[1765283241404,3.23,133.32,133.31,0.05233421]
[1765283245415,3.23,133.32,133.28,6.7523]
[1765283246013,3.23,133.32,133.29,6.7522]
[1765283246401,3.23,133.32,133.29,6.80801127]
[1765283249409,3.23,133.32,133.29,0.05581127]
[1765283250008,0.04990198,133.33,133.25,70.5139]
[1765283250009,3.2,133.29,133.25,70.5139]
[1765283250314,3.2,133.29,133.22,9.9010256]
[1765283250620,3.2,133.29,133.21,3.1456256]
[1765283250818,3.2,133.29,133.2,63.76]
[1765283250819,3.2,133.26,133.2,63.76]
[1765283251020,3.2,133.23,133.22,0.05229012]
[1765283253208,3.25580534,133.24,133.22,0.05229012]
[1765283257723,3.25580534,133.24,133.22,6.80809012]
[1765283258227,3.25580534,133.24,133.22,0.05229012]
[1765283260228,3.25580534,133.24,133.2,63.76]
[1765283260618,3.2,133.22,133.17,6.758]
[1765283261125,3.2,133.2,133.18,0.04898233]
[1765283261433,3.2,133.2,133.18,0.0555225]
[1765283262130,3.2,133.2,133.18,6.8133225]
[1765283262333,3.25126332,133.21,133.18,0.0555225]
[1765283263732,3.25126332,133.21,133.19,6.7571]
[1765283264432,3.25126332,133.21,133.18,0.0555225]
[1765283264433,0.05126332,133.21,133.2,6.7568]
[1765283265232,0.05126332,133.21,133.2,9.9024256]
[1765283265825,0.05126332,133.21,133.2,6.7568]
[1765283267425,0.05126332,133.21,133.2,9.9024256]
[1765283267731,0.05126332,133.21,133.2,73.7024256]
[1765283268135,0.05126332,133.21,133.2,75.2024256]
[1765283268434,3.2,133.29,133.2,173.5525256]
[1765283268634,3.2,133.29,133.22,3.1456256]
[1765283268831,3.2,133.29,133.24,6.7547]
[1765283269238,3.2,133.27,133.25,0.05662173]
[1765283275340,3.2,133.27,133.25,6.81082173]
[1765283277241,3.2,133.27,133.25,0.05662173]
[1765283281939,3.38,133.23,133.16,0.21]
[1765283282138,3.38,133.23,133.14,0.21]
[1765283282743,3.38,133.2,133.14,0.21]
[1765283282946,0.05289148,133.18,133.16,0.04878662]
[1765283283139,3.43289148,133.18,133.16,0.04878662]
[1765283284533,3.43289148,133.18,133.16,6.80758662]
[1765283284734,3.43289148,133.18,133.16,0.04878662]
[1765283293953,3.22,133.17,133.12,320.06515047]
[1765283294459,3.22,133.17,133.12,326.82605047]
[1765283294850,3.22,133.17,133.12,327.08605047]
[1765283295048,3.22,133.17,133.13,0.0516587]
[1765283295258,3.22,133.16,133.13,0.0516587]
[1765283296265,3.22,133.16,133.09,63.82]
[1765283296468,3.22,133.16,133.07,0.31]
[1765283297267,0.05405319,133.13,133.1,0.05485041]
[1765283297569,3.22,133.12,133.1,0.05485041]
[1765283299058,3.22,133.1,133.04,0.31]
[1765283299471,3.22,133.1,133.01,64.18]
[1765283299675,3.22,133.08,133.01,70.9461]
[1765283299871,3.22,133.08,133.01,64.18]
[1765283300172,3.22,133.05,133.03,0.0473682]
[1765283300366,3.22,133.05,133.03,0.40863484]
[1765283300674,3.27422493,133.06,133.03,0.40863484]
[1765283301477,3.27422493,133.06,133.03,7.17403484]
[1765283301970,0.05422493,133.06,133.03,0.40863484]
[1765283302276,0.05422493,133.06,133.05,0.36]
[1765283305966,3.22,133.12,133.07,6.7634]
[1765283306171,3.22,133.12,133.07,7.1234]
[1765283306974,0.05256876,133.11,133.08,0.05010283]
[1765283307181,3.22,133.1,133.08,0.05010283]
[1765283307372,3.27256876,133.11,133.08,7.17270283]
[1765283309976,3.27256876,133.11,133.09,6.7624]
[1765283310576,3.27256876,133.11,133.09,7.1324]
[1765283311173,0.05256876,133.11,133.09,7.1324]
[1765283313580,3.39256876,133.11,133.08,0.05010283]
[1765283314569,3.39256876,133.11,133.08,0.42010283]
[1765283316876,3.39256876,133.11,133.08,0.05010283]
[1765283328998,3.39256876,133.11,133.09,0.37]
[1765283329198,3.39256876,133.11,133.08,0.42010283]
[1765283330097,3.39256876,133.11,133.08,0.05010283]
[1765283330696,3.39256876,133.11,133.08,6.81290283]
[1765283331400,3.39256876,133.11,133.08,7.18290283]
[1765283332494,3.39256876,133.11,133.09,7.1324]
[1765283333000,0.05256876,133.11,133.09,0.37]
[1765283333391,0.05256876,133.11,133.1,9.15357219]
[1765283336301,0.05256876,133.11,133.08,0.05010283]
[1765283336302,0.05256876,133.11,133.09,7.1324]
[1765283337202,0.05256876,133.11,133.1,7.1319]
[1765283339206,0.05256876,133.11,133.1,0.37]
[1765283342303,0.05256876,133.11,133.09,6.7624]
[1765283342607,3.28256876,133.11,133.08,0.05010283]
[1765283342803,3.23,133.08,133.01,2.02167219]
[1765283343002,5.25167219,133.06,132.97,0.42]
[1765283343306,3.23,133.05,132.98,63.86]
[1765283343605,105.2125,133.07,132.97,2.44167219]
[1765283343606,3.23,133.03,132.97,0.42]
[1765283343806,3.28345139,133.01,132.99,0.05275694]
[1765283344005,0.05345139,133.01,132.99,0.47275694]
[1765283344311,0.05345139,133.01,132.99,0.05275694]
[1765283344511,0.05345139,133.01,133.0,0.42]
[1765283347108,3.23345139,133.01,132.99,0.05275694]
[1765283347800,0.05345139,133.01,132.99,0.48275694]
[1765283349605,0.05345139,133.01,133.0,0.43]
[1765283353320,3.18,133.07,133.03,0.43]
[1765283354014,3.18,133.07,133.04,0.43]
[1765283354407,3.23297793,133.07,133.04,0.47777199]
[1765283355317,3.23297793,133.07,133.04,7.24267199]
[1765283357615,3.23297793,133.07,133.06,0.43]
[1765283357616,0.05297793,133.07,133.06,0.43]
[1765283363025,0.05297793,133.07,133.06,64.31]
[1765283363625,0.05297793,133.07,133.06,71.074]
[1765283371839,3.36,133.13,133.08,6.7626]
[1765283372029,3.36,133.13,133.09,0.37]
[1765283372430,3.36,133.13,133.08,7.1326]
[1765283372837,3.36,133.11,133.09,0.05676378]
[1765283376338,0.05415687,133.12,133.1,6.7617]
[1765283376533,3.41415687,133.12,133.1,7.1317]
[1765283376733,3.41415687,133.12,133.09,0.42676378]
[1765283378548,3.41415687,133.12,133.09,7.18916378]
[1765283381646,0.05415687,133.12,133.11,0.37]
[1765283383039,0.05415687,133.12,133.11,7.1314]
[1765283390356,3.41415687,133.12,133.1,63.86]
[1765283391347,0.05415687,133.12,133.1,70.9915]
[1765283391554,0.05415687,133.12,133.11,0.37]
[1765283391955,0.05415687,133.12,133.11,7.1314]
[1765283392144,63.88,133.21,133.11,0.37]
[1765283392344,63.88,133.21,133.13,0.37]
[1765283392345,3.36,133.18,133.13,0.37]
[1765283392659,3.36,133.18,133.15,7.1294]
[1765283393360,3.41493026,133.18,133.15,6.80799214]
[1765283393751,3.41493026,133.18,133.15,7.17799214]
[1765283394657,3.41493026,133.18,133.15,0.04859214]
[1765283395861,3.41493026,133.18,133.15,6.80789214]
[1765283396865,3.41493026,133.18,133.16,0.37]
[1765283397159,3.41493026,133.18,133.16,6.7588]
[1765283400260,0.05493026,133.18,133.17,6.7584]
[1765283400466,0.05493026,133.18,133.17,7.1184]
[1765283402264,0.05493026,133.18,133.17,70.9584]
[1765283404759,3.28,133.25,133.21,0.36]
[1765283405158,3.28,133.25,133.23,0.36]
[1765283405352,3.28,133.25,133.23,7.1153]
[1765283405556,3.28,133.25,133.23,0.36]
[1765283405864,3.33525624,133.25,133.23,0.04848977]
[1765283406066,0.05525624,133.25,133.23,0.40848977]
[1765283406369,3.33525624,133.25,133.23,0.40848977]
[1765283406661,3.33525624,133.25,133.23,0.04848977]
[1765283407569,10.0348,133.24,133.23,0.04848977]
[1765283407765,3.28,133.23,133.19,63.82]
[1765283408363,5.29836116,133.22,133.16,6.7585]
[1765283408563,3.28,133.21,133.16,0.41]
[1765283408755,3.28,133.19,133.17,0.04931877]
[1765283408953,0.05309331,133.2,133.18,7.1678]
[1765283409462,3.33309331,133.2,133.18,6.7578]
[1765283409659,0.05309331,133.2,133.19,0.41]
[1765283410462,0.05309331,133.2,133.17,2.06767993]
[1765283410463,3.33309331,133.2,133.17,0.04931877]
[1765283417270,3.33309331,133.2,133.13,72.59846116]
[1765283417271,3.28,133.18,133.13,6.7601]
[1765283417482,3.28,133.16,133.13,6.7601]
[1765283418282,3.33653754,133.16,133.13,6.8077755]
[1765283419076,3.33653754,133.16,133.13,0.0476755]
[1765283419274,3.28,133.15,133.13,0.0476755]
[1765283422475,3.28,133.14,133.13,0.0476755]
[1765283427278,5.29836116,133.14,133.13,0.0476755]
[1765283427478,3.28,133.13,133.09,70.582]
[1765283427682,3.28,133.13,133.1,6.7619]
[1765283427979,3.28,133.13,133.09,63.82]
[1765283428184,3.23,133.11,133.06,7.2836]
[1765283428386,3.23,133.09,133.07,0.05296511]
[1765283428984,5.24836116,133.08,133.07,0.05296511]
[1765283429878,3.23,133.08,133.07,0.05296511]
[1765283432381,3.23,133.08,133.02,7.2855]
[1765283432575,3.23,133.06,133.02,7.2855]
[1765283432974,3.23,133.06,133.03,0.52]
[1765283433375,3.27813907,133.06,133.03,7.33726701]
[1765283435981,3.27813907,133.06,133.03,0.57206701]
[1765283440892,3.23,133.05,133.03,0.05206701]
[1765283443099,3.27813907,133.06,133.03,0.57206701]
[1765283443402,3.27813907,133.06,133.03,0.05206701]
[1765283443994,3.27813907,133.06,133.03,0.57206701]
[1765283444598,3.27813907,133.06,133.03,7.33746701]
[1765283444800,3.27813907,133.06,133.03,6.81746701]
[1765283445101,3.27813907,133.06,133.03,0.05206701]
[1765283449709,3.27813907,133.06,133.03,6.81746701]
[1765283450399,3.27813907,133.06,133.03,0.05206701]
[1765283452208,3.27813907,133.06,133.03,6.81746701]
[1765283452610,3.27813907,133.06,133.03,7.33746701]
[1765283453411,3.27813907,133.06,133.03,6.81746701]
[1765283453610,3.27813907,133.06,133.03,0.05206701]
[1765283455010,3.23,133.05,133.03,0.05206701]
[1765283456312,3.23,133.05,133.03,0.57206701]
[1765283456518,3.23,133.05,133.03,0.05206701]
[1765283461119,0.04813907,133.06,133.04,0.51]
[1765283461715,3.28813907,133.06,133.04,0.51]
[1765283462219,0.04813907,133.06,133.04,0.51]
[1765283462613,3.28813907,133.06,133.03,7.32706701]
[1765283463722,3.28813907,133.06,133.04,0.52]
[1765283464622,3.28813907,133.06,133.05,6.7645]
[1765283465613,0.04813907,133.06,133.05,7.2845]
[1765283465812,0.04813907,133.06,133.05,6.7645]
[1765283466517,0.04813907,133.06,133.05,7.2845]
[1765283468726,0.04813907,133.06,133.05,6.7645]
[1765283469526,0.04813907,133.06,133.05,7.2845]
[1765283470723,3.32813907,133.06,133.03,7.33716701]
[1765283470918,3.32813907,133.06,133.03,6.81716701]
[1765283471122,3.32813907,133.06,133.03,0.05206701]
[1765283472135,10.09223907,133.06,133.03,0.05206701]
[1765283472325,3.28,133.04,133.03,0.05206701]
[1765283473837,3.32813907,133.06,133.03,0.57206701]
[1765283474238,0.04813907,133.06,133.03,0.57206701]
[1765283475525,0.04813907,133.06,133.04,7.2849]
[1765283475934,3.32813907,133.06,133.04,0.52]
[1765283476139,3.32813907,133.06,133.03,7.33746701]
[1765283478440,3.32813907,133.06,133.03,0.57206701]
[1765283478742,3.32813907,133.06,133.03,0.05206701]
[1765283481140,3.32813907,133.06,133.03,0.57206701]
[1765283481339,3.32813907,133.06,133.03,7.33746701]
[1765283481532,0.04813907,133.06,133.04,0.52]
[1765283482844,3.32813907,133.06,133.03,6.81746701]
[1765283483545,3.32813907,133.06,133.03,0.05206701]
[1765283484048,3.28,133.04,133.03,0.05206701]
[1765283485234,3.28,133.05,133.03,0.05206701]
[1765283485540,3.32813907,133.06,133.03,0.57206701]
[1765283485742,0.04813907,133.06,133.03,0.57206701]
[1765283485937,0.04813907,133.06,133.04,0.52]
[1765283487546,0.04813907,133.06,133.04,7.2849]
[1765283488543,0.04813907,133.06,133.05,0.52]
[1765283496454,0.04813907,133.06,133.05,7.2845]
[1765283496648,0.04813907,133.06,133.05,0.52]
[1765283499159,0.04813907,133.06,133.05,7.2845]
[1765283499358,3.32,133.1,133.06,0.52]
[1765283499562,3.32,133.13,133.06,0.52]
[1765283499872,3.32,133.13,133.09,0.52]
[1765283500664,3.37587603,133.12,133.1,0.57211059]
[1765283501066,3.37587603,133.12,133.1,0.05211059]
[1765283506866,10.0814,133.11,133.1,0.05211059]
[1765283507070,3.32,133.11,133.1,0.05211059]
[1765283510573,3.37587603,133.12,133.1,0.05211059]
[1765283512272,0.05587603,133.12,133.1,0.57211059]
[1765283512469,3.37587603,133.12,133.1,0.57211059]
[1765283513378,3.37587603,133.12,133.1,0.05211059]
[1765283518379,3.37587603,133.12,133.1,7.32401059]
[1765283518580,3.37587603,133.12,133.1,0.05211059]
[1765283521485,0.05587603,133.12,133.1,0.56211059]
[1765283522087,0.05587603,133.12,133.11,0.51]
[1765283525972,0.05587603,133.12,133.1,7.32361059]
[1765283526880,0.05587603,133.12,133.11,0.51]
[1765283528880,0.05587603,133.12,133.11,7.2714]
[1765283530078,0.05587603,133.12,133.11,9.29257991]
[1765283536383,3.38,133.2,133.15,7.2693]
[1765283537282,3.42908376,133.19,133.16,0.05435325]
[1765283537484,3.38,133.18,133.16,0.05435325]
[1765283538689,3.38,133.18,133.16,0.56435325]
[1765283539191,3.42908376,133.19,133.16,0.56435325]
[1765283540586,3.42908376,133.19,133.17,0.51]
[1765283540786,0.04908376,133.19,133.17,0.51]
[1765283540987,0.04908376,133.19,133.18,2.53117991]
[1765283542493,0.04908376,133.19,133.18,9.28907991]
[1765283542693,0.04908376,133.19,133.18,6.7579]
[1765283543194,0.04908376,133.19,133.16,2.58553316]
[1765283543195,3.42908376,133.19,133.16,2.58553316]
[1765283543494,3.42908376,133.19,133.16,0.56435325]
[1765283544091,0.04908376,133.19,133.18,7.2679]
[1765283545392,0.04908376,133.19,133.18,71.1079]
[1765283546888,0.04908376,133.19,133.18,64.35]
[1765283547684,3.42908376,133.19,133.16,6.81275325]
[1765283547889,3.42908376,133.19,133.16,63.87435325]
[1765283548091,5.45026367,133.19,133.16,63.87435325]
[1765283548295,3.18,133.18,133.16,63.87435325]
[1765283548495,3.18,133.18,133.16,64.37435325]
[1765283548989,3.22908376,133.19,133.16,71.13295325]
[1765283551092,3.22908376,133.19,133.16,63.87435325]
[1765283551400,3.18,133.17,133.16,0.05435325]
[1765283555793,6.80648376,133.19,133.16,0.05435325]
[1765283555995,3.18,133.18,133.16,0.05435325]
[1765283556196,0.04908376,133.19,133.16,0.55435325]
[1765283556498,0.04908376,133.19,133.18,7.2579]
[1765283557804,0.04908376,133.19,133.18,0.5]
[1765283559501,0.04908376,133.19,133.18,7.2579]
[1765283565105,3.18,133.25,133.22,0.45]
[1765283565904,3.2372726,133.25,133.22,0.50326605]
[1765283567107,3.2372726,133.25,133.22,0.05326605]
[1765283568607,3.2372726,133.25,133.22,6.80896605]
[1765283571410,3.18,133.24,133.22,6.80896605]
[1765283574708,3.2372726,133.25,133.22,7.25896605]
[1765283576619,3.2372726,133.25,133.22,0.05326605]
[1765283577715,3.18,133.23,133.22,0.05326605]
[1765283577918,3.18,133.23,133.17,64.25]
[1765283578516,3.06,133.19,133.15,0.51]
[1765283578820,3.10917709,133.18,133.16,0.05303055]
[1765283579221,0.04917709,133.18,133.16,0.56303055]
[1765283579816,0.04917709,133.18,133.17,7.2684]
[1765283580218,0.04917709,133.18,133.17,73.08957991]
[1765283580423,3.06,133.23,133.2,7.2667]
[1765283581022,3.06,133.25,133.21,0.51]
[1765283581224,3.06,133.25,133.22,0.51]
[1765283581423,3.11109223,133.25,133.22,0.55862124]
[1765283583931,3.11109223,133.25,133.22,0.04862124]
[1765283586842,3.11109223,133.25,133.22,0.56862124]
[1765283586843,0.05109223,133.25,133.22,0.56862124]
[1765283587035,3.23109223,133.25,133.22,0.56862124]
[1765283587434,3.23109223,133.25,133.23,6.7552]
[1765283588537,3.23109223,133.25,133.22,7.32442124]
[1765283590441,3.23109223,133.25,133.22,0.04862124]
[1765283590641,3.18,133.23,133.16,0.52]
[1765283590834,3.18,133.23,133.14,0.57]
[1765283591037,3.18,133.2,133.15,7.3289]
[1765283591744,3.23122241,133.19,133.16,0.05025425]
[1765283591940,3.23122241,133.19,133.16,0.62025425]
[1765283592639,3.23122241,133.19,133.16,0.05025425]
[1765283593337,0.05122241,133.19,133.16,0.62025425]
[1765283594047,0.05122241,133.19,133.17,7.3283]
[1765283595549,0.05122241,133.19,133.17,6.7583]
[1765283595742,0.05122241,133.19,133.18,0.57]
[1765283596235,0.05122241,133.19,133.18,64.37]
[1765283596841,0.05122241,133.19,133.18,67.52274763]
[1765283597148,0.05122241,133.19,133.18,74.28064763]
[1765283598748,0.05122241,133.19,133.18,71.1279]
[1765283598950,0.05122241,133.19,133.18,7.3279]
[1765283599149,0.05122241,133.19,133.18,71.1479]
[1765283599847,0.05122241,133.19,133.18,7.3279]
[1765283600047,0.05122241,133.19,133.18,71.1479]
[1765283600852,0.05122241,133.19,133.18,7.3279]
[1765283601038,0.05122241,133.19,133.18,71.1479]
[1765283601442,0.05122241,133.19,133.18,74.30064763]
[1765283601648,3.18,133.24,133.22,0.57]
[1765283601851,3.18,133.28,133.22,0.57]
[1765283602047,3.18,133.26,133.22,0.57]
[1765283602645,0.05530415,133.25,133.23,0.05639002]
[1765283602846,3.23530415,133.25,133.23,0.05639002]
[1765283614556,9.98960415,133.25,133.23,0.05639002]
[1765283614763,3.24,133.24,133.23,0.05639002]
[1765283614957,3.24,133.22,133.18,63.82]
[1765283615568,3.24,133.22,133.13,3.15274763]
[1765283615569,3.24,133.19,133.13,0.56]
[1765283615962,3.24,133.16,133.15,0.0559711]
[1765283617464,3.24,133.16,133.09,108.34304763]
[1765283617465,3.24,133.16,133.09,0.56]
[1765283617661,3.24,133.15,133.09,0.56]
[1765283617858,3.24,133.15,133.08,63.8]
[1765283617859,3.24,133.13,133.08,71.1827]
[1765283618262,3.24,133.13,133.09,0.62]
[1765283618458,3.29769191,133.12,133.1,0.05603485]
[1765283618659,3.28816813,133.12,133.1,0.05764109]
[1765283619367,0.04816813,133.12,133.1,0.67764109]
[1765283620171,3.28816813,133.12,133.1,0.05764109]
[1765283625769,10.04916813,133.12,133.1,0.05764109]
[1765283625969,3.24,133.11,133.05,317.12481004]
[1765283626268,3.24,133.11,133.05,323.88921004]
[1765283626269,10.0017,133.11,133.05,323.88921004]
[1765283626473,3.24,133.11,133.05,323.88921004]
[1765283626863,0.05496922,133.09,133.07,0.04781989]
[1765283627066,3.29496922,133.09,133.07,0.04781989]
[1765283630782,10.05766922,133.09,133.07,0.04781989]
[1765283630980,3.29496922,133.09,133.07,0.04781989]
[1765283631773,0.05496922,133.09,133.07,0.72781989]
[1765283632481,3.24,133.12,133.08,0.68]
[1765283633374,3.29128561,133.11,133.08,0.68]
[1765283633674,3.29128561,133.11,133.08,0.73680329]
[1765283634585,3.29128561,133.11,133.08,7.49960329]
[1765283637880,0.05128561,133.11,133.1,0.68]
[1765283639285,0.05128561,133.11,133.09,6.7624]
[1765283639872,0.05128561,133.11,133.09,7.4424]
[1765283640579,0.05128561,133.11,133.1,7.4419]
[1765283641481,3.07,133.15,133.12,0.68]
[1765283641874,3.07,133.15,133.11,7.4414]
[1765283642093,3.07,133.15,133.11,0.68]
[1765283642475,3.12211749,133.14,133.12,0.05525088]
[1765283649099,3.12211749,133.14,133.08,63.86]
[1765283649395,3.07,133.14,133.08,63.86]
[1765283649601,3.39,133.11,133.08,63.86]
[1765283649993,3.44597742,133.11,133.08,0.05757501]
[1765283651902,3.44597742,133.11,133.08,7.56037501]
[1765283652897,3.44597742,133.11,133.08,6.82037501]
[1765283654303,3.44597742,133.11,133.08,0.05757501]
[1765283655206,3.44597742,133.11,133.08,0.79757501]
[1765283655710,3.44597742,133.11,133.08,0.05757501]
[1765283659405,3.39,133.09,133.08,0.05757501]
[1765283663306,16.06488461,133.09,133.08,0.05757501]
[1765283663508,10.1524,133.09,133.08,0.05757501]
[1765283664605,3.39,133.09,133.08,0.05757501]
[1765283665511,3.39,133.08,133.04,72.64747446]
[1765283666098,3.39,133.08,133.04,73.44747446]
[1765283666405,3.39,133.08,133.04,63.86]
[1765283666711,3.43768102,133.07,133.05,0.04486204]
[1765283672806,0.04768102,133.07,133.05,0.84486204]
[1765283674311,0.04768102,133.07,133.06,7.5639]
[1765283681619,3.4,133.13,133.1,0.75]
[1765283682720,3.45769033,133.13,133.1,0.8013343]
[1765283682918,3.45769033,133.13,133.1,7.5631343]
[1765283683121,0.05769033,133.13,133.11,0.75]
[1765283684320,3.45769033,133.13,133.1,2.07390876]
[1765283684521,3.45769033,133.13,133.1,2.82390876]
[1765283685622,3.45769033,133.13,133.1,9.58580876]
[1765283686014,3.45769033,133.13,133.11,0.75]
[1765283687525,3.45769033,133.13,133.11,7.5113]
[1765283689225,0.05769033,133.13,133.12,0.75]
[1765283689412,0.05769033,133.13,133.12,2.77257446]
[1765283690221,0.05769033,133.13,133.12,66.63257446]
[1765283691527,3.4,133.18,133.14,7.5098]
[1765283691827,3.4,133.18,133.15,0.75]
[1765283692418,3.4507071,133.18,133.15,0.79925391]
[1765283693018,3.4507071,133.18,133.15,0.04925391]
[1765283694222,3.4507071,133.18,133.15,0.79925391]
[1765283694424,3.4507071,133.18,133.15,7.55865391]
[1765283695727,3.4507071,133.18,133.15,0.04925391]
[1765283696429,3.4507071,133.18,133.11,6.761]
[1765283696430,3.4,133.16,133.11,6.761]
[1765283696630,3.4,133.16,133.1,2.82257446]
[1765283696819,3.4,133.16,133.11,0.8]
[1765283697021,3.4,133.16,133.13,7.5604]
[1765283697531,3.44897224,133.16,133.13,7.61362074]
[1765283697733,3.44897224,133.16,133.13,0.05322074]
[1765283699931,3.44897224,133.16,133.13,6.81362074]
[1765283700335,0.04897224,133.16,133.13,0.85322074]
[1765283700521,0.04897224,133.16,133.15,7.5594]
[1765283700924,0.04897224,133.16,133.15,6.7594]